fUSD/lending_fUSD_20240525
["ID","MTS","AMOUNT","RATE_DAILY","PERIOD"]
[327936278,1716676233663,-16383.73524411,0.000249,2]
[327936279,1716676233672,-153.02525692,0.00024909,2]
[327936280,1716676233682,-155.04441625,0.00024927,2]
[327936281,1716676233691,-787.9608808,0.00024951,2]
[327936282,1716676233701,-410.5352738,0.00024951,2]
[327936283,1716676233710,-313.09905444,0.00024951,2]
[327936284,1716676233719,-158.54525026,0.00024951,2]
[327936285,1716676233728,-804.18664536,0.00024951,2]
[327936286,1716676233737,-155.0,0.00024951,2]
[327936287,1716676233746,-401.3469825,0.00024965,2]
[327936288,1716676233756,-150.5,0.0002497,15]
[327936289,1716676233765,-1461.0,0.0002497,15]
[327936290,1716676233774,-308.0,0.0002497,15]
[327936291,1716676233783,-1948.0,0.0002497,15]
[327936292,1716676233792,-150.5,0.0002497,15]
[327936293,1716676233801,-153.02525692,0.00024972,2]
[327936294,1716676233810,-150.5,0.0002498,15]
[327936295,1716676233819,-1461.0,0.0002498,15]
[327936296,1716676233829,-308.0,0.0002498,15]
[327936297,1716676233838,-1948.0,0.0002498,15]
[327936298,1716676233847,-150.5,0.0002498,15]
[327936299,1716676234025,-150.5,0.0002499,15]
[327936300,1716676234035,-1461.0,0.0002499,15]
[327936301,1716676234044,-308.0,0.0002499,15]
[327936302,1716676234054,-1948.0,0.0002499,15]
[327936303,1716676234063,-150.5,0.0002499,15]
[327936304,1716676234073,-150.79,0.0002499,2]
[327936305,1716676234082,-150.79,0.0002499,2]
[327936306,1716676234091,-150.79,0.0002499,2]
[327936307,1716676234101,-150.79,0.0002499,2]
[327936308,1716676234110,-150.79,0.0002499,2]
[327936309,1716676234119,-150.79,0.0002499,2]
[327936310,1716676234128,-150.79,0.0002499,2]
[327936311,1716676234138,-201.97583306,0.00024995,2]
[327936312,1716676234147,-3722.44443943,0.00024997,2]
[327936313,1716676234161,-928.55867623,0.00024997,2]
[327936314,1716676234175,-452555.56448286,0.00024997,2]
[327936315,1716676234187,-9717.16015677,0.00024997,2]
[327936316,1716676234199,-65664.88824375,0.00024997,2]
[327936317,1716676234210,-547.43728168,0.00024997,2]
[327936318,1716676234221,-1421.18809713,0.00024997,2]
[327936319,1716676234233,-558.15546194,0.00024997,2]
[327936320,1716676234244,-1266.60175907,0.00024997,2]
[327936321,1716676234255,-6393.22799159,0.00024997,2]
[327936322,1716676234268,-618.069186,0.00024997,2]
[327936323,1716676234291,-1458.18502786,0.00024997,2]
[327936324,1716676234301,-903.55095595,0.00024997,2]
[327936325,1716676234312,-518.40021227,0.00024997,2]
[327936326,1716676234323,-5611.57327231,0.00024997,2]
[327936327,1716676234334,-261.15578167,0.00024997,2]
[327936328,1716676234346,-1275.75232492,0.00024997,2]
[327936329,1716676234357,-1671.1711544,0.00024997,2]
[327936330,1716676234368,-301601.89795289,0.00024997,2]
[327936331,1716676234379,-408.75323981,0.00024997,2]
[327936332,1716676234398,-430.0056,0.00024997,2]
[327936333,1716676234409,-18689.70909248,0.00024997,2]
[327936334,1716676234420,-5250.21953415,0.00024997,2]
[327936335,1716676234431,-1673.69726498,0.00024997,2]
[327936336,1716676234442,-13935.23498772,0.00024997,2]
[327936337,1716676234453,-5615.33786295,0.00024997,2]
[327936338,1716676234464,-14066.42892057,0.00024997,2]
[327936339,1716676234483,-818.0,0.00024997,2]
[327936340,1716676234493,-49347.91675046,0.00024997,2]
[327936341,1716676234504,-1501.57922295,0.00024997,2]
[327936342,1716676234516,-455.94522447,0.00024997,2]
[327936345,1716676238751,-766.0,0.00024997,9]
[327936346,1716676239611,-7361.2008839,0.00024997,9]
[327936347,1716676239623,-41705.31160236,0.00024997,9]
[327936348,1716676239634,-492.414,0.00024997,9]
[327936349,1716676239645,-16958.54404651,0.00024997,9]
[327936350,1716676239667,-1928.24853322,0.00024997,9]
[327936351,1716676239678,-1427.85452135,0.00024997,9]
[327936352,1716676239690,-952.329,0.00024997,9]
[327936353,1716676239702,-27061.14939622,0.00024997,9]
[327936354,1716676239714,-26773.65525828,0.00024997,9]
[327936366,1716676241066,-112221.90000096,0.00024997,9]
[327936382,1716676242092,-289.68560364,0.00024997,9]
[327936383,1716676242104,-363.98568217,0.00024997,9]
[327936384,1716676242115,-4612.8104439,0.00024997,9]
[327936385,1716676242126,-1748.56626615,0.00024997,9]
[327936386,1716676242138,-1120.0285415,0.00024997,9]
[327936387,1716676242185,-2730.17657587,0.00024997,9]
[327936388,1716676242199,-20261.95515799,0.00024997,9]
[327936426,1716676243262,-3738.45115588,0.00024997,9]
[327936431,1716676243667,-5761.98843668,0.00024997,9]
[327936450,1716676246241,-387.7699999,0.00024997,9]
[327936451,1716676246444,-3577.8,0.00024997,9]
[327936452,1716676246456,-11145.72819865,0.00024997,9]
[327936453,1716676246465,-713267.9773229,0.00024997,2]
[327936454,1716676425169,18750.0,0.00013,2]
[327936455,1716676425200,488937.55727893,0.00013,2]
[327936472,1716677432405,-240.98288585,0.00014774,2]
[327936473,1716677432415,-155.0,0.00014775,2]
[327936474,1716677432424,-252.64508453,0.00014775,2]
[327936475,1716677432434,-155.0,0.00014776,2]
[327936476,1716677432443,-155.0,0.00014777,2]
[327936477,1716677432452,-2735.59275733,0.0001478,2]
[327936478,1716677432471,-562.43544538,0.0001478,2]
[327936479,1716677432487,-1266.7972655,0.0001478,2]
[327936480,1716677432499,-183.26005961,0.0001478,2]
[327936481,1716677432508,-150.0,0.00014786,2]
[327936482,1716677432517,-150.0,0.00014786,2]
[327936483,1716677432527,-150.0,0.00014795,2]
[327936484,1716677432536,-242.33922014,0.00015,2]
[327936485,1716677432560,-308.14008547,0.00015,2]
[327936486,1716677432572,-68.83645294,0.00015,2]
[327936487,1716677432581,-234.44303977,0.00015219,2]
[327936488,1716677432590,-376.78601032,0.00015233,2]
[327936489,1716677432610,-123.20398968,0.00015233,2]
[327936490,1716677432619,-150.99,0.00015233,2]
[327936491,1716677432629,-880.52,0.00015233,2]
[327936492,1716677432639,-1012.79,0.00015592,2]
[327936493,1716677432648,-210.0,0.00016264,2]
[327936494,1716677432658,-765.3769338,0.00017521,2]
[327936495,1716677432669,-5137.53228514,0.00017521,2]
[327936496,1716677432681,-801.36554768,0.00017521,2]
[327936497,1716677432712,-2782.51002855,0.00017521,2]
[327936498,1716677432749,-1600.69348217,0.00017521,2]
[327936516,1716677438709,-1992.74934569,0.00017521,2]
[327936517,1716677438721,-3638.90769307,0.00017521,2]
[327936518,1716677438766,-254.99999,0.00017521,2]
[327936519,1716677438778,-611.56751101,0.00017521,2]
[327936520,1716677438790,-302.52178472,0.00017521,2]
[327936521,1716677438802,-524.18265939,0.00017521,2]
[327936522,1716677438814,-330.2694009,0.00017521,2]
[327936523,1716677438842,-683.175201,0.00017521,2]
[327936524,1716677438876,-1340.26476761,0.00017521,2]
[327936526,1716677438888,-1258.28539142,0.00017521,2]
[327936528,1716677438899,-451.57864314,0.00017521,2]
[327936531,1716677438910,-1424.01933471,0.00017521,2]
[327936533,1716677438920,-250.0,0.00017595,2]
[327936535,1716677438929,-166.91,0.00017723,2]
[327936537,1716677438939,-166.91,0.00017855,2]
[327936539,1716677438948,-1012.79,0.00017856,2]
[327936541,1716677438958,-166.91,0.00017987,2]
[327936543,1716677438967,-166.91,0.00018119,2]
[327936545,1716677438977,-184.71,0.00018137,2]
[327936547,1716677438988,-727.56,0.00018191,2]
[327936549,1716677438997,-166.91,0.00018251,2]
[327936551,1716677439010,-250.0,0.000183,2]
[327936553,1716677439020,-166.91,0.00018383,2]
[327936555,1716677439029,-166.91,0.00018515,2]
[327936557,1716677439039,-166.91,0.00018647,2]
[327936559,1716677439048,-180.04,0.00018745,2]
[327936561,1716677439058,-370.67,0.00018745,2]
[327936563,1716677439067,-787.0,0.000191,2]
[327936565,1716677439077,-3045.0,0.000192,2]
[327936567,1716677439087,-11005.18109864,0.00019568,2]
[327936569,1716677439096,-181.7495362,0.000199,3]
[327936571,1716677439106,-1774.662058,0.0002,2]
[327936573,1716677439118,-49569.10023355,0.0002,4]
[327936576,1716677439133,-1629.82328996,0.0002,4]
[327936758,1716677442630,-141435.92788175,0.0002,4]
[327936759,1716677442640,-6242.82236079,0.0002,2]
[327936760,1716677442650,-5189.03261963,0.0002,2]
[327936761,1716677442660,-1012.79,0.0002012,2]
[327936762,1716677442670,-98445.39605899,0.00020267,2]
[327936763,1716677442679,-727.56,0.00020931,2]
[327936764,1716677442689,-184.71,0.00021159,2]
[327936765,1716677442699,-240.0,0.00021894,2]
[327936766,1716677442709,-260.46,0.00021918,2]
[327936767,1716677442719,-2000.0,0.00021918,2]
[327936768,1716677442729,-250.0,0.00021918,2]
[327936769,1716677442740,-263.7,0.00021918,2]
[327936770,1716677442750,-154.06640758,0.00022028,2]
[327936771,1716677442759,-160.85701506,0.0002219,2]
[327936772,1716677442768,-151.11015037,0.00022209,2]
[327936773,1716677442777,-226.25084365,0.0002224,2]
[327936774,1716677442787,-151.11015037,0.00022265,2]
[327936775,1716677442797,-156.24709475,0.00022319,2]
[327936776,1716677442807,-168.31319421,0.0002233,2]
[327936777,1716677442818,-1012.79,0.00022384,2]
[327936778,1716677442828,-151.11015037,0.000224,2]
[327936779,1716677442837,-166.83499667,0.00022416,2]
[327936780,1716677442847,-226.25084365,0.00022422,2]
[327936781,1716677442858,-226.25084365,0.00022441,2]
[327936782,1716677442867,-852.23,0.00022511,2]
[327936783,1716677442877,-226.25084365,0.00022534,2]
[327936784,1716677442887,-334.45581875,0.00022698,2]
[327936785,1716677442897,-151.11015037,0.00022727,2]
[327936786,1716677442907,-156.06198401,0.00022743,2]
[327936787,1716677442916,-226.25084365,0.00022841,2]
[327936788,1716677442926,-153.29171783,0.00022851,2]
[327936789,1716677442936,-155.04441625,0.00022861,2]
[327936790,1716677442946,-152.41767349,0.00022917,2]
[327936791,1716677442955,-160.85701506,0.00023265,2]
[327936792,1716677442965,-428.45631643,0.00023547,2]
[327936793,1716677442975,-153.46461402,0.00023569,2]
[327936794,1716677442986,-492.0749225,0.0002357,2]
[327936795,1716677442995,-1050.09354251,0.00023575,28]
[327936796,1716677443005,-334.45581875,0.00023579,2]
[327936797,1716677443015,-153.46461402,0.00023596,2]
[327936798,1716677443025,-93659.13460985,0.00023597,2]
[327936799,1716677443035,-727.56,0.0002367,2]
[327936800,1716677443045,-500.0,0.00023683,2]
[327936801,1716677443056,-500.0,0.00023683,2]
[327936802,1716677443065,-226.25084365,0.00023693,2]
[327936806,1716677443360,-552.85555291,0.00023745,2]
[327936807,1716677443371,-153.29171783,0.00023748,2]
[327936808,1716677443380,-226.25084365,0.00023816,2]
[327936809,1716677443390,-153.46461402,0.00023935,2]
[327936810,1716677443399,-153.46461402,0.00023957,2]
[327936811,1716677443409,-151.11015037,0.00023959,2]
[327936812,1716677443418,-90948.25525717,0.00023998,2]
[327936813,1716677443428,-472.59666178,0.00024,2]
[327936814,1716677443438,-433.26102806,0.00024,2]
[327936815,1716677443448,-166.66666667,0.00024008,2]
[327936816,1716677443457,-156.24709475,0.00024073,2]
[327936817,1716677443467,-334.45581875,0.00024121,2]
[327936818,1716677443477,-152.41767349,0.00024144,2]
[327936819,1716677443488,-334.45581875,0.00024152,2]
[327936820,1716677443498,-184.71,0.00024182,2]
[327936821,1716677443507,-168.31319421,0.00024195,2]
[327936822,1716677443517,-180.0,0.0002423,2]
[327936823,1716677443527,-492.07492243,0.00024267,2]
[327936824,1716677443536,-154.36370949,0.00024281,2]
[327936825,1716677443546,-155.04441625,0.0002429,2]
[327936826,1716677443555,-153.02525692,0.00024315,2]
[327936827,1716677443565,-167.99941387,0.00024364,2]
[327936828,1716677443574,-334.45581875,0.00024435,2]
[327936829,1716677443584,-334.45581875,0.00024505,2]
[327936830,1716677443594,-226.25084365,0.00024592,2]
[327936831,1716677443603,-152.41767349,0.00024634,2]
[327936832,1716677443613,-226.25084365,0.00024647,2]
[327936833,1716677443623,-1012.79,0.00024648,2]
[327936834,1716677443632,-270.342614,0.00024658,2]
[327936835,1716677443642,-380.70037141,0.00024676,2]
[327936836,1716677443653,-153.46461402,0.00024694,2]
[327936838,1716677443662,-500.0,0.00024779,2]
[327936839,1716677443672,-500.0,0.00024779,2]
[327936840,1716677443682,-334.45581875,0.00024782,2]
[327936841,1716677443692,-226.25084365,0.0002481,2]
[327936842,1716677443701,-334.45581875,0.00024847,2]
[327936843,1716677443711,-226.25084365,0.00024872,2]
[327936844,1716677443721,-334.45581875,0.00024885,2]
[327936845,1716677443731,-150.79,0.00024888,2]
[327936846,1716677443741,-20706.95694198,0.00024889,2]
[327936847,1716677443751,-20706.95694196,0.00024889,2]
[327936848,1716677443761,-20706.95694196,0.00024889,2]
[327936849,1716677443771,-20706.95694196,0.00024889,2]
[327936850,1716677443780,-161.4324022,0.00024894,2]
[327936851,1716677443791,-155.48291854,0.00024894,2]
[327936852,1716677443801,-270.83777248,0.00024894,2]
[327936853,1716677443811,-207.51951624,0.00024894,2]
[327936854,1716677443821,-155.29351845,0.00024894,2]
[327936855,1716677443832,-365.13082167,0.00024894,2]
[327936856,1716677443842,-2596.0710139,0.00024894,2]
[327936857,1716677443851,-617.40793659,0.00024894,2]
[327936858,1716677443861,-293.42814944,0.00024894,2]
[327936859,1716677443871,-1197.36588036,0.00024894,2]
[327936860,1716677443880,-168.70422983,0.00024894,2]
[327936861,1716677443890,-155.0,0.00024894,2]
[327936862,1716677443900,-709.75087905,0.00024896,2]
[327936863,1716677443909,-803.4540425,0.00024896,2]
[327936864,1716677443919,-9616.19560275,0.00024896,2]
[327936865,1716677443928,-2181.36170084,0.00024896,2]
[327936866,1716677443937,-21182.93316137,0.00024896,2]
[327936867,1716677443947,-155.13236369,0.00024896,2]
[327936868,1716677443956,-5275.29475044,0.00024896,2]
[327936869,1716677443966,-155.0,0.00024896,2]
[327936870,1716677443976,-155.16738635,0.00024896,2]
[327936871,1716677443986,-299.40777896,0.00024896,2]
[327936872,1716677443995,-167.92658219,0.00024896,2]
[327936873,1716677444005,-3457.34079695,0.00024896,2]
[327936874,1716677444014,-155.2959176,0.00024896,2]
[327936875,1716677444024,-466.66267694,0.00024896,2]
[327936876,1716677444033,-3032.39955501,0.00024896,2]
[327936877,1716677444043,-317.21570948,0.00024896,2]
[327936878,1716677444053,-155.0,0.00024896,2]
[327936879,1716677444062,-156.11215771,0.00024896,2]
[327936880,1716677444072,-212.9813536,0.00024896,2]
[327936881,1716677444082,-417.94645782,0.00024896,2]
[327936882,1716677444091,-1348.64433981,0.00024896,3]
[327936883,1716677444101,-156.34146276,0.00024896,2]
[327936884,1716677444110,-1211.53612828,0.00024896,2]
[327936885,1716677444121,-252.15468317,0.00024896,2]
[327936886,1716677444131,-155.939382,0.00024896,2]
[327936887,1716677444145,-155.0,0.00024896,2]
[327936888,1716677444155,-306.93217568,0.00024896,2]
[327936889,1716677444164,-10932.59783418,0.00024896,2]
[327936890,1716677444174,-203.14829701,0.00024896,2]
[327936891,1716677444185,-210.49086009,0.00024896,2]
[327936892,1716677444195,-1402.22118618,0.00024897,2]
[327936893,1716677444205,-201.6952023,0.00024897,2]
[327936894,1716677444215,-40881.79186449,0.00024898,2]
[327936895,1716677444228,-40881.79186444,0.00024898,2]
[327936896,1716677444239,-40881.79186444,0.00024898,2]
[327936897,1716677444249,-40881.79186444,0.00024898,2]
[327936898,1716677444259,-183.97544242,0.000249,2]
[327936899,1716677444269,-1375.42610954,0.000249,2]
[327936900,1716677444279,-192.96031599,0.000249,2]
[327936901,1716677444289,-164.45040786,0.000249,2]
[327936902,1716677444298,-7167.17488637,0.000249,2]
[327936903,1716677444308,-203.90705948,0.000249,2]
[327936904,1716677444319,-151.55924765,0.000249,4]
[327936905,1716677444329,-1531.91090276,0.000249,2]
[327936906,1716677444338,-168.31319421,0.00024956,2]
[327936907,1716677444347,-492.07492243,0.00024963,2]
[327936908,1716677444358,-2360.0,0.00024967,15]
[327936909,1716677444368,-150.5,0.00024967,15]
[327936910,1716677444378,-150.5,0.00024967,15]
[327936911,1716677444387,-1582.0,0.0002497,15]
[327936912,1716677444397,-166.0,0.0002497,15]
[327936913,1716677444406,-261.0,0.0002497,15]
[327936914,1716677444416,-150.5,0.0002497,15]
[327936915,1716677444425,-151.11015037,0.00024972,2]
[327936916,1716677444435,-2360.0,0.00024977,15]
[327936917,1716677444445,-150.5,0.00024977,15]
[327936918,1716677444455,-150.5,0.00024977,15]
[327936919,1716677444464,-151.29,0.0002498,15]
[327936920,1716677444475,-1582.0,0.0002498,15]
[327936921,1716677444485,-166.0,0.0002498,15]
[327936922,1716677444494,-261.0,0.0002498,15]
[327936923,1716677444505,-150.5,0.0002498,15]
[327936924,1716677444518,-150.79,0.00024987,2]
[327936925,1716677444529,-150.79,0.00024987,2]
[327936926,1716677444540,-150.79,0.00024987,2]
[327936927,1716677444550,-150.79,0.00024987,2]
[327936928,1716677444560,-150.79,0.00024987,2]
[327936929,1716677444571,-2360.0,0.00024987,15]
[327936930,1716677444582,-150.5,0.00024987,15]
[327936931,1716677444592,-150.5,0.00024987,15]
[327936932,1716677444602,-150.5,0.0002499,15]
[327936933,1716677444612,-1582.0,0.0002499,15]
[327936934,1716677444622,-150.5,0.0002499,15]
[327936935,1716677444632,-166.0,0.0002499,15]
[327936936,1716677444642,-261.0,0.0002499,15]
[327936937,1716677444653,-150.79,0.0002499,2]
[327936938,1716677444663,-150.79,0.0002499,2]
[327936939,1716677444673,-150.79,0.0002499,2]
[327936940,1716677444684,-150.79,0.0002499,2]
[327936941,1716677444694,-150.79,0.0002499,2]
[327936942,1716677444704,-150.79,0.0002499,2]
[327936943,1716677444715,-150.79,0.0002499,2]
[327936944,1716677444726,-281.88330445,0.00024995,2]
[327936945,1716677444737,-409.84120861,0.00024995,2]
[327936946,1716677444748,-155.21388189,0.00024996,2]
[327936947,1716677444769,-6197.05684609,0.00024996,2]
[327936948,1716677444781,-197.12557421,0.00024996,10]
[327936949,1716677444792,-150.0,0.00024996,10]
[327936950,1716677444803,-146693.77665256,0.00024997,9]
[327936951,1716677444815,-1250092.30547098,0.00024997,2]
[327936952,1716677444826,-1039.84746642,0.00024997,2]
[327936953,1716677444836,-500.0,0.00024997,2]
[327936954,1716677444847,-257.24940323,0.00024997,2]
[327936955,1716677444859,-1044.31301003,0.00024997,2]
[327936956,1716677444869,-445.6637425,0.00024997,2]
[327936957,1716677444880,-1593.27123508,0.00024997,7]
[327936958,1716677444890,-200.0,0.00024997,2]
[327936959,1716677444901,-3000.0,0.00024997,2]
[327936960,1716677444911,-289.00377032,0.00024998,2]
[327936961,1716677444922,-168.44065273,0.00024998,2]
[327936962,1716677444933,-155.0,0.00024998,2]
[327936963,1716677444944,-458.9094943,0.00024998,2]
[327936964,1716677444955,-155.0,0.00024998,2]
[327936965,1716677444966,-228.06770619,0.00024998,2]
[327936966,1716677444977,-257.85125369,0.00024998,2]
[327936967,1716677444988,-158.97058847,0.00024998,2]
[327936968,1716677444999,-155.3549062,0.00024998,2]
[327936969,1716677445009,-685.99323766,0.00024998,2]
[327936970,1716677445020,-161.31688215,0.00024998,2]
[327936971,1716677445030,-298.45560487,0.00024998,2]
[327936972,1716677445041,-312.15600045,0.00024998,2]
[327936973,1716677445051,-150.0,0.00024999,10]
[327936974,1716677445063,-155.52154493,0.00024999,2]
[327936975,1716677445073,-150.0,0.00024999,2]
[327936976,1716677445084,-150.0,0.00024999,2]
[327936977,1716677445094,-550.82581038,0.00025,2]
[327936978,1716677445105,-927.24854719,0.00025,2]
[327936979,1716677445116,-1427.85452135,0.00025,4]
[327936980,1716677445126,-1272.69875268,0.00025,2]
[327936981,1716677445136,-155.0,0.00025,2]
[327936982,1716677445147,-1880193.14031498,0.00025,2]
[327936983,1716677445158,-539.19524572,0.00025,14]
[327936984,1716677445167,-1150.0,0.00025,2]
[327936985,1716677445177,-151.0,0.00025,7]
[327936986,1716677445188,-151.0,0.00025,7]
[327936987,1716677445198,-151.0,0.00025,7]
[327936988,1716677445209,-151.0,0.00025,7]
[327936989,1716677445219,-151.0,0.00025,7]
[327936990,1716677445230,-151.0,0.00025,7]
[327936991,1716677445242,-151.0,0.00025,7]
[327936992,1716677445253,-151.0,0.00025,7]
[327936993,1716677445263,-151.0,0.00025,7]
[327936994,1716677445274,-151.0,0.00025,7]
[327936995,1716677445285,-230.037577,0.00025,7]
[327936996,1716677445296,-151.0,0.00025,7]
[327936997,1716677445307,-230.037577,0.00025,7]
[327936998,1716677445317,-151.0,0.00025,7]
[327936999,1716677445327,-151.0,0.00025,7]
[327937000,1716677445338,-153.15955,0.00025,7]
[327937001,1716677445349,-151.81978,0.00025,7]
[327937002,1716677445360,-151.0,0.00025,7]
[327937003,1716677445370,-232.316386,0.00025,7]
[327937004,1716677445381,-151.0,0.00025,7]
[327937005,1716677445391,-151.0,0.00025,7]
[327937006,1716677445402,-232.316386,0.00025,7]
[327937007,1716677445412,-151.0,0.00025,7]
[327937008,1716677445423,-151.0,0.00025,7]
[327937009,1716677445433,-303.963609,0.00025,7]
[327937010,1716677445443,-303.963609,0.00025,7]
[327937011,1716677445453,-151.0,0.00025,7]
[327937012,1716677445463,-151.0,0.00025,7]
[327937013,1716677445472,-151.0,0.00025,7]
[327937014,1716677445483,-151.0,0.00025,7]
[327937015,1716677445493,-151.0,0.00025,7]
[327937016,1716677445504,-151.0,0.00025,7]
[327937017,1716677445514,-151.0,0.00025,7]
[327937018,1716677445524,-151.0,0.00025,7]
[327937019,1716677445533,-151.0,0.00025,7]
[327937020,1716677445543,-151.0,0.00025,7]
[327937021,1716677445553,-151.0,0.00025,7]
[327937022,1716677445563,-263.523695,0.00025,7]
[327937023,1716677445572,-151.0,0.00025,7]
[327937024,1716677445583,-151.0,0.00025,7]
[327937025,1716677445592,-151.0,0.00025,7]
[327937026,1716677445602,-151.0,0.00025,7]
[327937027,1716677445612,-151.0,0.00025,7]
[327937028,1716677445622,-269.592234,0.00025,7]
[327937029,1716677445631,-151.0,0.00025,7]
[327937030,1716677445641,-151.0,0.00025,7]
[327937031,1716677445650,-151.0,0.00025,7]
[327937032,1716677445659,-170.03096,0.00025,7]
[327937033,1716677445669,-170.03096,0.00025,7]
[327937034,1716677445678,-151.0,0.00025,7]
[327937035,1716677445688,-151.0,0.00025,7]
[327937036,1716677445698,-151.0,0.00025,7]
[327937037,1716677445708,-151.0,0.00025,7]
[327937038,1716677445718,-151.0,0.00025,7]
[327937039,1716677445727,-151.0,0.00025,7]
[327937040,1716677445737,-278.710304,0.00025,7]
[327937041,1716677445746,-151.0,0.00025,7]
[327937042,1716677445756,-278.710304,0.00025,7]
[327937043,1716677445765,-151.0,0.00025,7]
[327937044,1716677445775,-151.0,0.00025,7]
[327937045,1716677445784,-151.0,0.00025,7]
[327937046,1716677445794,-151.0,0.00025,7]
[327937047,1716677445804,-151.0,0.00025,7]
[327937048,1716677445813,-151.0,0.00025,7]
[327937049,1716677445823,-151.0,0.00025,7]
[327937050,1716677445832,-151.0,0.00025,7]
[327937051,1716677445841,-151.0,0.00025,7]
[327937052,1716677445851,-151.0,0.00025,7]
[327937053,1716677445860,-159.256748,0.00025,7]
[327937054,1716677445870,-159.256748,0.00025,7]
[327937055,1716677445879,-151.0,0.00025,7]
[327937056,1716677445889,-8294.0,0.00025014,2]
[327937057,1716677445898,-900.0,0.00025053,2]
[327937058,1716677445908,-800.0,0.00025053,2]
[327937059,1716677445917,-4566.24640727,0.00025087,2]
[327937060,1716677445927,-20706.95694196,0.00025136,2]
[327937061,1716677445936,-226.25084365,0.00025165,2]
[327937062,1716677445945,-168.31319421,0.00025198,2]
[327937063,1716677445955,-153.46461402,0.00025199,2]
[327937064,1716677445964,-337.03,0.00025205,2]
[327937065,1716677445974,-167.0,0.00025233,2]
[327937066,1716677445984,-334.45581875,0.00025238,2]
[327937067,1716677445994,-200.0,0.00025247,2]
[327937068,1716677446003,-40881.79186444,0.00025257,2]
[327937069,1716677446012,-852.23,0.00025325,2]
[327937070,1716677446021,-297.904696,0.000254,2]
[327937071,1716677446031,-270.342614,0.00025479,2]
[327937072,1716677446040,-168.31319421,0.00025497,2]
[327937073,1716677446050,-200.0,0.00025499,2]
[327937074,1716677446059,-2250.0,0.000255,2]
[327937075,1716677446068,-900.0,0.00025601,2]
[327937076,1716677446078,-800.0,0.00025601,2]
[327937077,1716677446087,-492.07492243,0.0002566,2]
[327937078,1716677446096,-154.36370949,0.00025664,2]
[327937079,1716677446105,-151.11015037,0.000257,2]
[327937080,1716677446115,-16383.73524407,0.00025741,2]
[327937081,1716677446125,-154.06640758,0.00025793,2]
[327937082,1716677446134,-500.0,0.00025875,2]
[327937083,1716677446146,-500.0,0.00025875,2]
[327937084,1716677446156,-153.02525692,0.00025876,2]
[327937085,1716677446165,-163.36,0.0002589,2]
[327937086,1716677446174,-167.0,0.00025969,2]
[327937087,1716677446185,-201.69520226,0.00026028,2]
[327937088,1716677446195,-159.1633046,0.00026048,2]
[327937089,1716677446204,-226.25084365,0.00026073,2]
[327937090,1716677446213,-900.0,0.00026149,2]
[327937091,1716677446224,-800.0,0.00026149,2]
[327937092,1716677446234,-159.1633046,0.00026165,2]
[327937093,1716677446244,-334.45581875,0.0002621,2]
[327937094,1716677446254,-270.342614,0.00026301,2]
[327937095,1716677446263,-153.3330513,0.00026355,2]
[327937096,1716677446272,-492.07492243,0.00026357,2]
[327937097,1716677446281,-334.45581875,0.00026379,2]
[327937098,1716677446291,-153.46461402,0.00026403,2]
[327937099,1716677446300,-20706.95694196,0.00026444,2]
[327937100,1716677446309,-226.25084365,0.00026494,2]
[327937101,1716677446319,-188.0,0.000265,10]
[327937103,1716677446329,-168.31319421,0.00026501,2]
[327937105,1716677446339,-334.45581875,0.00026502,2]
[327937107,1716677446348,-546.0,0.00026531,2]
[327937109,1716677446358,-160.09991446,0.00026581,2]
[327937111,1716677446367,-16383.73524407,0.00026581,2]
[327937113,1716677446376,-150.79,0.00026587,2]
[327937115,1716677446386,-150.0,0.00026596,2]
[327937116,1716677446395,-40881.79186444,0.00026597,2]